Cogmind - Beta 10.2 @@@ ROGUE MODE // 2022.01.04 @ 23:40:14 Player: Avari3l Result: Destroyed by D-53 Grenadier with Mini Grenade Launcher Performance ------------- Evolutions (0) 0 Regions Visited (2) 400 Robots Destroyed (8) 40 Value Destroyed (119) 119 Prototype IDs (0) 0 Alien Tech Used (0) 0 Bonus (0) 0 TOTAL SCORE: 559 Bonus ------- None Cogmind --------- Core Integrity 0/250 Matter 236/300 Energy 95/100 System Corruption 1% Temperature Cool (0) Movement Core (50) Location -10/Mines Parts ------- > --- POWER (1) -------- (None) > --- PROPULSION (2) --- (None) > --- UTILITY (2) ------ Heat Sink > --- WEAPON (2) ------- (None) > --- INVENTORY (4) ---- Small Storage Unit Medium Storage Unit Large Storage Unit Small Laser Peak State ------------ > --- POWER ------------ Light Ion Engine > --- PROPULSION ------- Aluminum Leg Aluminum Leg > --- UTILITY ---------- Small Storage Unit Medium Storage Unit > --- WEAPON ----------- EM Pulse Gun Light Assault Rifle > --- INVENTORY -------- Medium Storage Unit Large Storage Unit EM Pulse Gun Small Laser Grenade Launcher [Rating: 7] Favorites ----------- Power Light Ion Engine Engine Light Ion Engine Propulsion Aluminum Leg Leg Aluminum Leg Wheel Wheel Utility Heat Sink Device Heat Sink Storage Medium Storage Unit Weapon Light Assault Rifle Energy Gun EM Pulse Gun Ballistic Gun Light Assault Rifle Launcher Grenade Launcher Build | -11 -10 -10 ------- Run | Scr Mat Min Slots Evolved . | . . . Power . | . . . Propulsion . | . . . Utility . | . . . Weapon . | . . . Parts Attached 16 | 6 8 2 Power 2 | 1 1 . Engine 2 | 1 1 . Core . | . . . Reactor . | . . . Propulsion 4 | 2 2 . Treads . | . . . Leg 3 | 1 2 . Wheel 1 | 1 . . Hover . | . . . Flight . | . . . Utility 4 | 1 3 . Device 2 | 1 1 . Storage 2 | . 2 . Processor . | . . . Hackware . | . . . Protection . | . . . Artifact . | . . . Weapon 6 | 2 2 2 Energy Gun 3 | 1 1 1 Energy Cannon . | . . . Ballistic Gun 1 | 1 . . Ballistic Cannon . | . . . Launcher 2 | . 1 1 Special Weapon . | . . . Impact Weapon . | . . . Slashing Weapon . | . . . Piercing Weapon . | . . . Special Melee Weapon . | . . . Unidentified Prototypes . | . . . Parts Lost 5 | . . 5 Power 1 | . . 1 Propulsion 2 | . . 2 Utility . | . . . Weapon 2 | . . 2 Highest Loss Streak 5 | . . 5 Average Slot Usage (%) 94 | . 91 95 Engine 13 | . 14 13 Leg 23 | . 21 26 Wheel 2 | . 6 . Device 13 | . 12 14 Storage 11 | . 8 14 Energy Gun 12 | . 13 12 Ballistic Gun 13 | . 14 13 Naked Turns . | . . . Heaviest Build 18 | 7 18 16 Greatest Support 20 | 10 20 20 Greatest Overweight (x) 3 | . 1 3 Average Overweight (x) . | . . . Largest Inventory Capacity 10 | 4 10 8 Average Capacity 6 | 4 6 7 Most Carried 8 | 4 7 8 Average Carried 5 | 1 4 7 Final Capacity 8 | 4 8 4 Final Carried 7 | 4 7 4 Class Distribution -------------------- 100% | Mutant Dominant Class ---------------- Mutant | -10/Materials Mutant | -10/Mines Resources | -11 -10 -10 ----------- Run | Scr Mat Min Matter Collected 340 | 263 . 77 Remotely . | . . . Salvage Created 87 | 45 3 39 Parts 8 | 3 . 5 Haulers Intercepted . | . . . Recyclers Shooed . | . . . Parts Field Recycled . | . . . Retrieved Matter . | . . . Parts Self-Destructed . | . . . Prevented . | . . . Kills | -11 -10 -10 ------- Run | Scr Mat Min Combat Hostiles Destroyed 7 | 1 3 3 Guns 1 | 1 . . AOE 6 | . 3 3 Classes Destroyed 3 | 1 1 1 Builder 1 | . . 1 Swarmer 6 | . 3 3 Grunt 1 | 1 . . Best Kill Streak 3 | 1 3 3 Combat Bots Only 3 | 1 3 3 Max Kills in Single Turn 2 | 1 1 2 Gunslinging . | . . . Exploded 2 | . 1 2 Melee . | . . . Uniques/NPCs Destroyed . | . . . Combat | -11 -10 -10 -------- Run | Scr Mat Min Damage Taken 705 | 46 67 592 Core 255 | 12 . 243 Absorbed by Shields . | . . . Core Remaining (%) 95 | 95 . . Volleys Fired 14 | 3 3 8 Largest 2 | 2 1 2 Hottest 60 | 60 30 60 Shots Fired 21 | 6 3 12 Gun 14 | 6 . 8 Cannon . | . . . Launcher 7 | . 3 4 Special . | . . . Kinetic 7 | 3 . 4 Thermal . | . . . Explosive 7 | . 3 4 Electromagnetic 7 | 3 . 4 Robot Hit Streak 8 | 1 . 8 Robot Miss Streak 3 | 3 . 1 Penetration Max . | . . . Secondary Targets . | . . . Shots Hit Robots 11 | 2 . 9 Core Hits 12 | 2 4 6 Critical Hits . | . . . Critical Kills . | . . . Critical Parts Destroyed . | . . . Melee Attacks . | . . . Impact . | . . . Slashing . | . . . Piercing . | . . . Sneak Attacks . | . . . Combat Hostiles . | . . . Follow-up Attacks . | . . . Damage Inflicted 575 | 35 267 273 Guns 90 | 35 . 55 Cannons . | . . . Explosions 477 | . 259 218 Melee . | . . . Ramming 8 | . 8 . Kinetic 38 | 9 . 29 Thermal 66 | . 66 . Explosive 411 | . 193 218 Electromagnetic 52 | 26 . 26 Impact . | . . . Slashing . | . . . Piercing . | . . . Highest Corruption 1 | . 1 1 Average Corruption 1 | . 1 1 Corruption Purged . | . . . Effects 1 | . 1 . Energy Discharges 1 | . 1 . Overload Shots . | . . . Overflow Damage 16 | . 11 5 Projectiles . | . . . Explosions 16 | . 11 5 Melee . | . . . Knockbacks . | . . . Impact . | . . . Kinetic . | . . . Secondary . | . . . Self-Inflicted Damage 4 | . 4 . Shots . | . . . Rammed 2 | . 2 . Targets Rammed 2 | . 2 . Kicked . | . . . Crushed . | . . . Highest Temperature 44 | 44 . 20 Average Temperature 24 | 25 . 20 Received Heat Transfer 104 | 24 . 80 Siege Activations . | . . . Robots Corrupted . | . . . Combat Hostiles . | . . . Parts Fried . | . . . Impact Corruptions . | . . . Robots Melted . | . . . Combat Hostiles . | . . . Parts Melted . | . . . Heat Transferred 50 | . 50 . Parts Sabotaged . | . . . Parts Stolen . | . . . Parts Stripped . | . . . Power Chain Reactions . | . . . Missiles Intercepted . | . . . Alert | -11 -10 -10 ------- Run | Scr Mat Min Peak Influence 133 | 20 113 133 Initial 43 | . 13 43 Average 71 | 2 71 113 Maximum Alert Level . | . . . Low Security (%) 100 | 100 100 100 Level 1 . | . . . Level 2 . | . . . Level 3 . | . . . Level 4 . | . . . Level 5 . | . . . High Security . | . . . Max Security . | . . . Squads Dispatched 1 | . 1 . Investigation 1 | . 1 . Extermination . | . . . Reinforcement . | . . . Assault . | . . . Garrison . | . . . Intercept . | . . . Construction Impeded . | . . . Haulers Reinforced . | . . . Stealth | -11 -10 -10 --------- Run | Scr Mat Min Distress Signals 1 | . 1 . Communications Jammed . | . . . Distress Signals . | . . . Times Spotted 25 | 1 3 21 Peak Tracking Total 16 | 1 4 16 Tactical Retreats . | . . . Traps | -11 -10 -10 ------- Run | Scr Mat Min Traps Triggered 2 | . 2 . Indirectly . | . . . Trap Hack Attempts . | . . . Triggered . | . . . Disarmed . | . . . Reprogrammed . | . . . Reused . | . . . Traps Extracted . | . . . Installed . | . . . Triggered . | . . . Machines | -11 -10 -10 ---------- Run | Scr Mat Min Machines Disabled 2 | . 2 . Max in Single Turn 2 | . 2 . Machines Sabotaged . | . . . Garrisons Compromised . | . . . Overloaded Fab Kills . | . . . Fab Network Shutdowns . | . . . Hacking | -11 -10 -10 --------- Run | Scr Mat Min Machines Accessed 2 | . 1 1 Terminals 1 | . . 1 Fabricators . | . . . Repair Stations . | . . . Recycling Units 1 | . 1 . Scanalyzers . | . . . Garrison Access . | . . . Total Hacks 5 | . 2 3 Successful 2 | . 2 . Failed 3 | . . 3 Catastrophic 1 | . . 1 Database Lockouts . | . . . Manual 4 | . 1 3 Terminals 3 | . . 3 Fabricators . | . . . Repair Stations . | . . . Recycling Units 2 | . 2 . Scanalyzers . | . . . Garrison Access . | . . . Terminal Hacks . | . . . Fabricator Hacks . | . . . Repair Station Hacks . | . . . Recycling Unit Hacks 2 | . 2 . Report Inventory 1 | . 1 . Retrieve Matter 1 | . 1 . Scanalyzer . | . . . Garrison Access Hacks . | . . . Unauthorized Hacks . | . . . Terminals . | . . . Fabricators . | . . . Repair Stations . | . . . Recycling Units . | . . . Scanalyzers . | . . . Garrison Access . | . . . Data Cores Recovered . | . . . Used . | . . . Hacking Detections 2 | . 1 1 Full Trace Events . | . . . Feedback Events . | . . . Feedback Blocked . | . . . Robot Schematics Acquired . | . . . Robots Built . | . . . Matter . | . . . Time . | . . . Total Robot Build Rating . | . . . Part Schematics Acquired . | . . . Parts Built . | . . . Matter . | . . . Time . | . . . Total Part Build Rating . | . . . Parts Repaired . | . . . Time . | . . . Parts Recycled . | . . . Recycled Matter . | . . . Retrieved Matter . | . . . Retrieved Components . | . . . Parts Scanalyzed . | . . . Part Schematics Acquired . | . . . Parts Damaged . | . . . Bothacking | -11 -10 -10 ------------ Run | Scr Mat Min Used RIF Installer . | . . . Robots Hacked . | . . . Non-combat . | . . . Combat . | . . . Robot Hacks Applied . | . . . Relay Couplers Released . | . . . Robots Rewired . | . . . Allies Hacked . | . . . Hacks Repelled . | . . . Allies | -11 -10 -10 -------- Run | Scr Mat Min Total Allies . | . . . Largest Group . | . . . Highest-Rated Group . | . . . Highest-Rated Ally . | . . . Total Orders . | . . . Ally Attacks . | . . . Total Damage . | . . . Kills . | . . . Allies Corrupted . | . . . Allies Melted . | . . . Intel | -11 -10 -10 ------- Run | Scr Mat Min Robot Analysis Total . | . . . Derelict Logs Recovered 1 | . . 1 Drone Launches . | . . . Drone Recoveries . | . . . Exploration | -11 -10 -10 ------------- Run | Scr Mat Min Turns Passed 504 | 130 160 214 Spaces Moved 368 | 102 109 157 Core 28 | 18 . 10 Treads . | . . . Legs 340 | 84 109 147 Wheels . | . . . Hover . | . . . Flight . | . . . Fastest Speed 50 | 50 120 50 Average Speed 117 | 107 120 120 Slowest Speed 200 | 120 150 200 Overloaded Moves . | . . . Propulsion Burnouts . | . . . Robots Hopped . | . . . Cave-ins Triggered . | . . . Exploration Rate (%) 24 | 4 32 36 Regions Visited 2 Branch Regions 1 Pre-discovered Areas . | . . . Known Exits Taken . | . . . Unknown Exits Taken 2 | 1 1 . Scrap Searched . | . . . Spaces Dug . | . . . Terrain Destroyed 50 | . 39 11 Melee . | . . . Projectile . | . . . AOE 50 | . 39 11 Terrain Rammed . | . . . Walls Destroyed . | . . . Machines Disabled . | . . . Actions | -11 -10 -10 --------- Run | Scr Mat Min Total 415 | 114 132 169 Wait 1 | . 1 . Move 366 | 101 108 157 Hop . | . . . Pick Up 11 | 4 6 1 Fast Attach 10 | 6 4 . Attach . | . . . Detach . | . . . Swap 6 | . 4 2 Drop 5 | . 4 1 Fire 14 | 3 3 8 Melee . | . . . Ram . | . . . Kick 2 | . 2 . Crush . | . . . Escape Stasis . | . . . Rewire . | . . . Trap . | . . . Miscellaneous . | . . . Route ------- -11/Scrapyard -10/Materials -10/Mines History --------- Turn | Location | Event 2 | -11/Scrapyard | Met Revision 17 107 | -11/Scrapyard | Discovered new exit (range 8) 131 | -11/Scrapyard | Entered Materials 252 | -10/Materials | Discovered new exit (range 15) 291 | -10/Materials | Entered Mines 326 | -10/Mines | Build established: Mutant 466 | -10/Mines | Assembled infested the area 502 | -10/Mines | Core integrity fell below 50% 505 | -10/Mines | Core integrity fell below 20% 505 | -10/Mines | Destroyed by D-53 Grenadier with Mini Grenade Launcher Last Messages --------------- 00490_ Lgt. Ion Engine destroyed. 00490_ Aluminum Leg destroyed. 00491_ as-02828 destroyed. 00492_ as-60356 destroyed. 00492_ as-28666 destroyed. 00492_ as-17582 destroyed. 00494_ Lgt. Assault Rifle destroyed. 00496_ as-00281 destroyed. 00496_ as-49602 destroyed. 00496_ as-85419 destroyed. 00496_ as-30219 destroyed. 00498_ as-46622 destroyed. 00498_ Terminal disabled. 00498_ as-58813 destroyed. 00500_ as-19555 destroyed. 00500_ as-70338 destroyed. 00501_ Acquired 54 matter. 00503_ Dropped Med. Storage Unit. 00503_ as-35158 destroyed. 00504_ Core Extractor disabled. Map ----- +----------------------------------------------------+ | ?????????????????????????????????? | | ?????????????#???????????????????? | | ???????????? #???????????????????? | | ?????###### ?????????????????????? | | ?????# ??????????????????????? | | ???? ??????????????????????? | | ?? ##?????????????????????? | | ?? %% ##????????????????????? | | ?? #????????????????????? | | ?? #????????????????????? | | ??# ##???????????????????? | | ??? #???????????????????? | | ??? ????????????????????? | | ??## #????????????????????? | | ??# #????????????????????? | | ???# ##???????????????????? | | ???# #???????????????????? | | ???# d ##????????????????????? | | ??## d ##?????????????????????? | | ??# ##?????????????????????? | | ??# ####???????????????????? | | ??# ] # ??????????##???????? | | ??# [!| # #?????????# ##??????? | | ??# # ########## #??????? | | ??# # ##?????? | | ??### @ ## #?????? | | ????# ####### ## #?????? | | ???## ##?????# ## #?????? | | ??## """ ##??????# # #??????? | | ??# """ ##??????# #???????? | | ??# ###????# ##??????? | | ??# #????#### #??????? | | ??# #???????# #??????? | | ??## ## #???????# #??????? | | ???### ### #??????## #??????? | | ?????# #?## ##????## ######## | | ?????# #??## ##???# | | ?????# #???## ##??# | | ?????# #????# #??## ########## | | ?????# ????## ##??####??????### | | ?????? ?????# ##??????###### | | ?????? ?????## #?????## | | ?????? ??????## #?????# | | ?????? ???????## ##?????# | | ?????? ?????????###???????# | | ??????????????????????????## | | ???????????????????????????## | | ????????????????????????????###### | | ????????????????????????????????## | | ????????????????????????????????# | +----------------------------------------------------+ Best States ------------- Heat Dissipation 35 Energy Generation 10 Energy Capacity 125 Matter Stores 300 Matter Capacity 300 Sight Range 16 Terrain Scan Density 10 Evasion (%) 50 Item Schematics ----------------- None Robot Schematics ------------------ None Fabricated ------------ Nothing Alien Tech Used ----------------- None Achievements -------------- None Challenges ------------ None Game ------ Seed DeuteriumDiametricNegator Manual? 0 Play Time 00:17:27 Cumulative 32.1 hours Start 2022.01.04 @ 23:25:16 End 2022.01.04 @ 23:40:14 Sessions 1 Manual Loads 0 Difficulty Rogue Special Mode None Game No. 31 Rogue 31 Adventurer 0 Explorer 0 Win Type - Total 0 Types 0/0/0/0/0/0/0/0/0 Lore% 13 Gallery% 30 Achievement% 23 Wizard Run 0 Options --------- ASCII 0 Keyboard 1 Movement Numpad Keybinds 0 Fullscreen 1 Font 18/Smallcaps Map View 76x50 Tactical HUD 1 Map Filters NONE Filters NONE Steam 1 RUN: 8e6ce6ec-666a-4d22-8c61-3089c36f060b